bitfinex/quotes_BTCUSD_20241003
["timestamp","ask_amount","ask_price","bid_price","bid_amount"]
[1727975116758,0.331675,60300.0,60291.0,0.25245621]
[1727975117012,0.742024,60303.0,60292.0,0.111032]
[1727975117262,0.742024,60303.0,60293.0,0.0032639]
[1727975117263,0.0787,60303.0,60293.0,0.0032639]
[1727975117499,0.0787,60303.0,60296.0,0.165848]
[1727975117724,0.0787,60303.0,60297.0,0.27421871]
[1727975117997,0.1,60311.0,60298.0,0.276874]
[1727975118214,0.331626,60309.0,60298.0,0.27421871]
[1727975118468,0.663254,60309.0,60298.0,0.27421871]
[1727975118704,0.51554385,60314.0,60298.0,0.44006071]
[1727975118705,0.0752,60314.0,60298.0,0.44006071]
[1727975119916,0.07518825,60314.0,60298.0,0.27421871]
[1727975120156,0.0001,60316.0,60304.0,0.44034385]
[1727975120387,0.0001,60316.0,60307.0,0.165817]
[1727975120630,0.0001,60316.0,60308.0,0.27421871]
[1727975120860,0.0001,60316.0,60309.0,0.276844]
[1727975121096,0.0001,60316.0,60313.0,0.2491922]
[1727975121350,0.0011,60316.0,60314.0,0.27421871]
[1727975121586,0.0001,60316.0,60315.0,0.276828]
[1727975121848,0.0011,60316.0,60315.0,0.44001471]
[1727975122082,0.0001,60316.0,60315.0,0.27421871]
[1727975123059,0.0001,60316.0,60303.0,0.331654]
[1727975123320,0.0001,60316.0,60300.0,0.25474597]
[1727975123321,0.0001,60316.0,60304.0,0.16318671]
[1727975123578,0.0001,60316.0,60300.0,0.2492322]
[1727975123579,0.165815,60308.0,60307.0,0.2491922]
[1727975123814,0.44034385,60313.0,60300.0,0.2492322]
[1727975124063,0.165834,60301.0,60300.0,0.2492322]
[1727975124763,0.165834,60301.0,60300.0,4e-05]
[1727975125006,0.331664,60302.0,60300.0,4e-05]
[1727975125007,0.331647,60305.0,60300.0,4e-05]
[1727975125235,0.0985,60308.0,60300.0,4e-05]
[1727975125481,0.165834,60301.0,60300.0,4e-05]
[1727975125964,0.165834,60301.0,60300.0,0.00404]
[1727975126640,0.0985,60308.0,60300.0,0.00404]
[1727975126908,0.165829,60303.0,60300.0,0.00604]
[1727975127124,0.0985,60308.0,60301.0,0.2491922]
[1727975127349,0.165824,60305.0,60301.0,0.165833]
[1727975127573,0.266316,60308.0,60304.0,0.165825]
[1727975127795,0.165822,60306.0,60305.0,0.111032]
[1727975128026,0.165822,60306.0,60300.0,0.165876]
[1727975128027,0.430135,60308.0,60301.0,0.3602242]
[1727975128306,0.165819,60307.0,60303.0,0.165829]
[1727975128527,0.331625,60309.0,60302.0,0.27421871]
[1727975128528,0.331625,60309.0,60304.0,0.276857]
[1727975128746,0.000914,60316.0,60305.0,0.111032]
[1727975129202,0.000914,60316.0,60308.0,0.33163]
[1727975129488,0.000914,60316.0,60307.0,0.2491922]
[1727975129489,0.000914,60316.0,60312.0,0.165803]
[1727975129704,0.000914,60316.0,60313.0,0.111032]
[1727975129935,0.000914,60316.0,60313.0,0.165799]
[1727975130171,0.000914,60316.0,60314.0,0.27421871]
[1727975130397,0.001914,60316.0,60315.0,0.276828]
[1727975130629,0.001914,60316.0,60315.0,0.44001471]
[1727975130873,0.167707,60316.0,60315.0,0.27421871]
[1727975131116,0.000817,60320.0,60319.0,0.165785]
[1727975131362,0.000817,60320.0,60319.0,0.44000371]
[1727975132296,0.000817,60320.0,60319.0,0.33643483]
[1727975132522,0.166599,60320.0,60319.0,0.28821871]
[1727975132994,0.166599,60320.0,60319.0,0.014]
[1727975132995,0.000817,60320.0,60319.0,0.014]
[1727975133241,0.000817,60320.0,60319.0,0.17718671]
[1727975133533,0.000817,60320.0,60319.0,0.44000371]
[1727975133738,0.000817,60320.0,60319.0,0.32243483]
[1727975133943,0.000817,60320.0,60319.0,0.29121871]
[1727975134162,0.166599,60320.0,60319.0,0.28621871]
[1727975134377,0.166599,60320.0,60319.0,0.28421871]
[1727975134378,0.000817,60320.0,60319.0,0.28421871]
[1727975134619,0.000817,60320.0,60319.0,0.27421871]
[1727975134889,0.000817,60320.0,60319.0,0.45000371]
[1727975135101,0.000817,60320.0,60319.0,0.51021983]
[1727975135332,0.000817,60320.0,60319.0,0.45000371]
[1727975135547,0.000817,60320.0,60319.0,0.29321871]
[1727975136054,0.000817,60320.0,60319.0,0.28321871]
[1727975136284,0.166599,60320.0,60319.0,0.016]
[1727975136541,0.166599,60320.0,60319.0,0.17918671]
[1727975136759,0.166599,60320.0,60319.0,0.16318671]
[1727975136994,0.166599,60320.0,60319.0,0.18718671]
[1727975137257,0.166599,60320.0,60319.0,0.28421871]
[1727975137258,0.165782,60320.0,60319.0,0.28421871]
[1727975137483,0.165782,60320.0,60319.0,0.111032]
[1727975137692,0.165782,60320.0,60319.0,0.016]
[1727975137912,0.165779,60321.0,60319.0,0.007]
[1727975138141,0.332371,60322.0,60319.0,0.019]
[1727975138380,0.240782,60320.0,60319.0,0.019]
[1727975139130,0.240782,60320.0,60319.0,0.012]
[1727975139377,0.240782,60320.0,60319.0,0.022]
[1727975139878,0.165809,60310.0,60309.0,0.2491922]
[1727975140144,0.075,60320.0,60309.0,0.41237891]
[1727975140145,0.331606,60313.0,60309.0,0.41237891]
[1727975140385,0.075,60320.0,60309.0,0.41237891]
[1727975140386,0.165791,60317.0,60309.0,0.41237891]
[1727975140620,0.165809,60310.0,60309.0,0.16318671]
[1727975140843,0.165807,60311.0,60309.0,0.16318671]
[1727975141081,0.001,60310.0,60309.0,0.16318671]
[1727975141351,0.002,60310.0,60309.0,0.16318671]
[1727975141575,0.166809,60310.0,60309.0,0.16318671]
[1727975141789,0.166809,60310.0,60309.0,0.16918671]
[1727975142236,0.165809,60310.0,60309.0,0.16918671]
[1727975142540,0.165809,60310.0,60309.0,0.01]
[1727975143416,0.165809,60310.0,60309.0,0.006]
[1727975143687,0.165826,60304.0,60303.0,0.2491922]
[1727975144355,0.331658,60303.0,60300.0,4e-05]
[1727975144566,0.16583,60303.0,60301.0,0.16318671]
[1727975144784,0.332619,60310.0,60301.0,0.16318671]
[1727975144785,0.331619,60310.0,60301.0,0.16318671]
[1727975145008,0.0208794,60342.0,60301.0,0.16318671]
[1727975145009,0.002,60334.0,60301.0,0.16318671]
[1727975145228,0.002,60334.0,60303.0,0.2491922]
[1727975145229,0.165827,60304.0,60303.0,0.2491922]
[1727975145452,0.165827,60304.0,60303.0,0.16318671]
[1727975146399,0.165827,60304.0,60303.0,0.16818671]
[1727975146650,0.165827,60304.0,60303.0,0.005]
[1727975147108,0.331645,60306.0,60303.0,0.005]
[1727975147109,0.331647,60305.0,60303.0,0.008]
[1727975147319,0.165827,60304.0,60303.0,0.008]
[1727975147560,0.331647,60305.0,60300.0,4e-05]
[1727975147561,0.165834,60301.0,60300.0,4e-05]
[1727975147790,0.165834,60301.0,60300.0,0.16322671]
[1727975149467,0.165834,60301.0,60300.0,0.16922671]
[1727975149941,0.165834,60301.0,60300.0,0.00604]
[1727975150414,0.165834,60301.0,60300.0,0.01304]
[1727975150851,0.165834,60301.0,60300.0,0.00704]
[1727975151356,0.165834,60301.0,60300.0,4e-05]
[1727975151621,0.165834,60301.0,60300.0,0.00204]
[1727975151853,0.165834,60301.0,60300.0,4e-05]
[1727975152093,0.165834,60301.0,60300.0,0.00604]
[1727975152326,0.165834,60301.0,60300.0,0.00904]
[1727975152570,0.247634,60301.0,60300.0,0.00904]
[1727975152801,0.247634,60301.0,60300.0,0.00604]
[1727975153071,0.249634,60301.0,60300.0,0.00604]
[1727975153311,0.249634,60301.0,60300.0,4e-05]
[1727975153549,0.247634,60301.0,60300.0,4e-05]
[1727975153788,0.253634,60301.0,60300.0,0.00104]
[1727975154028,0.253634,60301.0,60300.0,4e-05]
[1727975154249,0.254634,60301.0,60300.0,4e-05]
[1727975155178,0.254634,60301.0,60300.0,0.04933547]
[1727975155455,0.28659296,60301.0,60300.0,0.04933547]
[1727975155691,0.28659296,60301.0,60300.0,4e-05]
[1727975155692,0.252634,60301.0,60300.0,4e-05]
[1727975156596,0.251634,60301.0,60300.0,4e-05]
[1727975156904,0.252634,60301.0,60300.0,4e-05]
[1727975157120,0.251634,60301.0,60300.0,4e-05]
[1727975157365,0.248634,60301.0,60300.0,0.00104]
[1727975157827,0.37870939,60301.0,60300.0,0.00104]
[1727975158724,0.39070939,60301.0,60300.0,0.00204]
[1727975158955,0.260634,60301.0,60300.0,0.00204]
[1727975159672,0.178834,60301.0,60300.0,0.00204]
[1727975160117,0.178834,60301.0,60300.0,0.003668]
[1727975160836,0.165834,60301.0,60300.0,0.001668]
[1727975161061,0.167834,60301.0,60300.0,0.001668]
[1727975161315,0.165834,60301.0,60300.0,0.001668]
[1727975161536,0.38859156,60301.0,60300.0,0.001668]
[1727975161764,0.38859156,60301.0,60300.0,0.004668]
[1727975161765,0.261634,60301.0,60300.0,0.004668]
[1727975162003,0.54757511,60301.0,60300.0,0.001668]
[1727975162277,0.96867093,60301.0,60295.0,0.001628]
[1727975162536,0.16587,60288.0,60287.0,0.2491922]
[1727975163200,0.61768411,60288.0,60272.0,0.04929547]
[1727975163452,0.61768411,60288.0,60271.0,0.32267959]
[1727975163453,0.28594111,60287.0,60271.0,0.29848767]
[1727975163679,0.28594111,60287.0,60272.0,0.331824]
[1727975163895,0.331763,60284.0,60271.0,0.2491922]
[1727975164126,0.165896,60279.0,60271.0,0.2491922]
[1727975164397,0.165892,60280.0,60278.0,0.2491922]
[1727975164648,0.61774511,60277.0,60265.0,0.04955947]
[1727975164868,0.61774511,60277.0,60271.0,0.2491922]
[1727975164869,0.28594111,60277.0,60271.0,0.2491922]
[1727975165106,0.28594111,60277.0,60268.0,0.165925]
[1727975165338,0.165895,60279.0,60269.0,0.165922]
[1727975165556,0.61771711,60282.0,60267.0,0.331854]
[1727975165765,0.61771711,60282.0,60266.0,0.16318671]
[1727975165766,0.72408762,60282.0,60269.0,0.331845]
[1727975165995,0.165894,60280.0,60279.0,0.003]
[1727975166436,0.61771711,60282.0,60264.0,0.2491922]
[1727975166437,0.28594111,60282.0,60264.0,0.2491922]
[1727975166663,0.1789,60283.0,60264.0,0.2491922]
[1727975166664,0.165921,60270.0,60264.0,0.2491922]
[1727975166908,0.28594111,60276.0,60265.0,0.331865]
[1727975167140,0.28594111,60276.0,60268.0,0.165924]
[1727975167587,0.28594111,60276.0,60264.0,0.2491922]
[1727975167815,0.28594111,60276.0,60269.0,0.165921]
[1727975168310,0.001,60280.0,60264.0,0.2491922]
[1727975168533,0.001,60280.0,60266.0,0.331859]
[1727975168756,0.331779,60281.0,60267.0,0.00228288]
[1727975168970,0.165895,60279.0,60273.0,0.16591]
[1727975169197,0.1,60282.0,60271.0,0.2491922]
[1727975169436,0.16587,60288.0,60282.0,0.165885]
[1727975169679,0.3269922,60291.0,60272.0,0.16318671]
[1727975170145,0.3269922,60291.0,60280.0,0.165892]
[1727975170146,0.004,60281.0,60280.0,0.165892]
[1727975170381,0.165877,60286.0,60272.0,0.16318671]
[1727975170605,0.165879,60285.0,60282.0,0.001]
[1727975170841,0.2491922,60284.0,60273.0,0.165909]
[1727975171098,0.165911,60273.0,60272.0,0.2491922]
[1727975171336,0.16591,60274.0,60272.0,0.2491922]
[1727975171572,0.28594111,60275.0,60264.0,0.2491922]
[1727975171799,0.165907,60275.0,60269.0,0.165921]
[1727975172145,0.28594111,60280.0,60262.0,0.331882]
[1727975172146,0.331831,60272.0,60262.0,0.331882]
[1727975172381,0.165909,60274.0,60272.0,0.005]
[1727975172601,0.28594111,60275.0,60272.0,0.005]
[1727975172834,0.2491922,60284.0,60265.0,0.5810562]
[1727975172835,0.165911,60273.0,60265.0,0.5810562]
[1727975173077,0.331811,60276.0,60266.0,0.331858]
[1727975173308,0.331811,60276.0,60269.0,0.004]
[1727975173547,0.28594111,60285.0,60269.0,0.004]
[1727975173796,0.165894,60280.0,60269.0,0.16318671]
[1727975174019,0.33175,60287.0,60272.0,0.165914]
[1727975174020,0.001,60273.0,60272.0,0.165914]
[1727975174255,0.001,60273.0,60272.0,0.16910004]
[1727975174499,0.001,60273.0,60269.0,0.16318671]
[1727975174729,0.001,60273.0,60265.0,0.006]
[1727975174970,0.331831,60272.0,60266.0,0.2541922]
[1727975175199,0.001,60273.0,60269.0,0.165922]
[1727975175438,0.001,60273.0,60268.0,0.331847]
[1727975175631,0.001,60273.0,60266.0,0.2491922]
[1727975175869,0.165907,60275.0,60270.0,0.165918]
[1727975176108,0.331805,60277.0,60272.0,0.165913]
[1727975176109,0.165902,60277.0,60272.0,0.165913]
[1727975176353,0.165902,60277.0,60266.0,0.5810492]
[1727975176354,0.165909,60274.0,60266.0,0.5810492]
[1727975176594,0.28594111,60285.0,60267.0,0.16318671]
[1727975176837,0.165907,60275.0,60271.0,0.165917]
[1727975177072,0.001,60273.0,60272.0,0.165914]
[1727975177296,0.001,60273.0,60272.0,0.170914]
[1727975177522,0.001,60273.0,60272.0,0.17284429]
[1727975177993,0.001,60273.0,60272.0,0.336031]
[1727975178233,0.001,60273.0,60272.0,0.44168639]
[1727975178460,0.2491922,60282.0,60281.0,0.165889]
[1727975178694,0.2491922,60282.0,60281.0,0.32907571]
[1727975178936,0.5809192,60291.0,60281.0,0.16318671]
[1727975178937,0.003,60285.0,60281.0,0.16318671]
[1727975179184,0.004,60285.0,60283.0,0.165881]
[1727975179434,0.004,60285.0,60282.0,0.165886]
[1727975179673,0.2491922,60291.0,60281.0,0.16318671]
[1727975179897,0.001,60282.0,60281.0,0.503665]
[1727975180156,0.001,60282.0,60281.0,0.512665]
[1727975180399,0.2491922,60305.0,60297.0,0.165843]
[1727975180655,0.4150162,60305.0,60297.0,0.165843]
[1727975180893,0.4150162,60305.0,60300.0,0.165837]
[1727975181365,0.165837,60300.0,60286.0,0.2491922]
[1727975181609,0.331647,60306.0,60295.0,0.331701]
[1727975181837,0.2491922,60305.0,60300.0,0.165837]
[1727975182064,0.2491922,60305.0,60300.0,0.32902371]
[1727975182334,0.2491922,60305.0,60300.0,0.16618671]
[1727975182335,0.165833,60302.0,60300.0,0.16618671]
[1727975182561,0.2491922,60305.0,60300.0,0.33802371]
[1727975182793,0.331631,60308.0,60300.0,0.33802371]
[1727975183031,0.16583,60303.0,60300.0,0.33502371]
[1727975183253,0.331644,60306.0,60300.0,0.32902371]
[1727975183492,0.165821,60306.0,60300.0,0.33502371]
[1727975183715,0.331628,60309.0,60300.0,0.34402371]
[1727975183966,0.165818,60307.0,60300.0,0.34402371]
[1727975184435,0.33165,60305.0,60300.0,0.015]
[1727975184676,0.166648,60301.0,60300.0,0.015]
[1727975185909,0.166648,60301.0,60300.0,0.180837]
[1727975185910,0.000814,60301.0,60300.0,0.180837]
[1727975186152,0.000814,60301.0,60300.0,0.34402371]
[1727975187703,0.000814,60301.0,60300.0,0.17818671]
[1727975187919,0.000814,60301.0,60300.0,0.015]
[1727975188158,0.166648,60301.0,60300.0,0.015]
[1727975188399,0.000814,60301.0,60300.0,0.34402371]
[1727975191847,0.000814,60301.0,60300.0,0.59321591]
[1727975192086,0.000814,60301.0,60300.0,0.44402371]
[1727975192320,0.000814,60301.0,60300.0,0.50039371]
[1727975192587,0.000814,60319.0,60312.0,0.165804]
[1727975192805,0.000814,60319.0,60314.0,0.188798]
[1727975193052,0.000814,60319.0,60314.0,0.35198471]
[1727975193528,0.000814,60319.0,60314.0,0.50145071]
[1727975193992,0.000814,60319.0,60314.0,0.45198471]
[1727975194229,0.000814,60319.0,60314.0,0.55291031]
[1727975194448,0.000814,60319.0,60314.0,0.50141964]
[1727975194674,0.000814,60319.0,60314.0,0.42898471]
[1727975195463,0.000814,60319.0,60302.0,0.04943493]
[1727975195705,0.000814,60319.0,60306.0,0.00550535]
[1727975195706,0.165815,60308.0,60306.0,0.00550535]
[1727975195940,0.331624,60310.0,60303.0,0.16318671]
[1727975196178,0.165827,60304.0,60300.0,0.2545457]
[1727975196418,0.28675511,60315.0,60302.0,0.331662]
[1727975196642,0.331621,60310.0,60301.0,0.16318671]
[1727975196886,0.165819,60307.0,60303.0,0.165828]
[1727975197119,0.001814,60315.0,60301.0,0.16318671]
[1727975197354,0.331602,60314.0,60301.0,0.16318671]
[1727975197594,0.165806,60312.0,60307.0,0.165817]
[1727975197824,0.001814,60315.0,60301.0,0.16318671]
[1727975198057,0.165802,60313.0,60308.0,0.165813]
[1727975198287,0.000814,60315.0,60308.0,0.16318671]
[1727975198513,0.000814,60315.0,60309.0,0.16318671]
[1727975199008,0.000814,60315.0,60303.0,0.331653]
[1727975199009,0.331602,60314.0,60300.0,0.2545457]
[1727975199260,0.000814,60315.0,60302.0,0.165831]
[1727975199261,0.165821,60306.0,60302.0,0.165831]
[1727975199505,0.165819,60307.0,60304.0,0.165826]
[1727975199727,0.165819,60307.0,60304.0,0.32901271]
[1727975199959,0.331629,60309.0,60300.0,0.001628]
[1727975200189,0.000814,60315.0,60301.0,0.49485471]
[1727975200190,0.003814,60315.0,60301.0,0.49485471]
[1727975200424,0.165817,60308.0,60304.0,0.165823]
[1727975200660,0.165818,60307.0,60304.0,0.165823]
[1727975201107,0.16581,60310.0,60306.0,0.165819]
[1727975201338,0.165813,60309.0,60304.0,0.331648]
[1727975201577,0.331613,60312.0,60307.0,0.165816]
[1727975201817,0.165814,60309.0,60305.0,0.165821]
[1727975202063,0.000814,60315.0,60304.0,0.49683471]
[1727975202307,0.000814,60315.0,60307.0,0.331634]
[1727975202553,0.1658,60314.0,60310.0,0.165808]
[1727975202801,0.000814,60315.0,60311.0,0.16318671]
[1727975203046,0.166611,60315.0,60311.0,0.32899271]
[1727975203288,0.000814,60315.0,60311.0,0.49479871]
[1727975203529,0.000814,60315.0,60314.0,0.165798]
[1727975203770,0.000814,60315.0,60314.0,0.32898471]
[1727975205225,0.000814,60315.0,60314.0,0.35198471]
[1727975205462,0.000814,60315.0,60314.0,0.45498471]
[1727975205695,0.000814,60315.0,60314.0,0.54518471]
[1727975205912,0.000814,60315.0,60314.0,0.55018471]
[1727975206134,0.000814,60315.0,60314.0,0.54218471]
[1727975206355,0.000814,60315.0,60314.0,0.55618471]
[1727975206582,0.000814,60315.0,60314.0,0.55818471]
[1727975206850,0.000814,60315.0,60314.0,0.60555471]
[1727975207519,0.000814,60315.0,60314.0,0.59488648]
[1727975207741,0.000814,60315.0,60314.0,0.56151648]
[1727975208404,0.000814,60315.0,60314.0,0.56351648]
[1727975208845,0.000814,60315.0,60314.0,0.57751648]
[1727975209062,0.000814,60315.0,60314.0,0.60888648]
[1727975209282,0.000814,60315.0,60314.0,0.56151648]
[1727975209537,0.000814,60315.0,60314.0,0.57551648]
[1727975209986,0.000814,60315.0,60314.0,0.60888648]
[1727975210207,0.000814,60315.0,60314.0,0.61088648]
[1727975210941,0.000814,60315.0,60314.0,0.48531648]
[1727975211161,0.000814,60315.0,60314.0,0.46231648]
[1727975211843,0.000814,60315.0,60314.0,0.44831648]
[1727975212066,0.000814,60315.0,60314.0,0.45031648]
[1727975212315,0.000814,60315.0,60314.0,0.48731648]
[1727975212529,0.000814,60315.0,60314.0,0.50131648]
[1727975212764,0.000814,60315.0,60314.0,0.47331648]
[1727975212993,0.000814,60315.0,60314.0,0.47131648]
[1727975213273,0.000814,60315.0,60314.0,0.48531648]
[1727975213704,0.000814,60315.0,60314.0,0.44831648]
[1727975214148,0.000814,60315.0,60314.0,0.46231648]
[1727975214624,0.000814,60315.0,60314.0,0.46431648]
[1727975215065,0.000814,60315.0,60314.0,0.48731648]
[1727975215498,0.000814,60315.0,60314.0,0.53660197]
[1727975215945,0.000814,60315.0,60314.0,0.53460197]
[1727975216402,0.000814,60315.0,60314.0,0.48731648]
[1727975216619,0.000814,60315.0,60314.0,0.48531648]
[1727975217059,0.000814,60319.0,60318.0,0.45172811]
[1727975217306,0.000814,60319.0,60318.0,0.73791482]
[1727975218195,0.000814,60319.0,60318.0,0.75191482]
[1727975218697,0.000814,60319.0,60318.0,0.8753244]
[1727975218947,0.000814,60319.0,60318.0,0.76591482]
[1727975219196,0.000814,60319.0,60318.0,0.88917915]
[1727975219436,0.000814,60319.0,60318.0,0.78339278]
[1727975219720,0.000814,60319.0,60318.0,0.78539278]
[1727975219913,0.000814,60319.0,60318.0,0.76791482]
[1727975220159,0.000814,60319.0,60318.0,0.78547737]
[1727975221536,0.000814,60319.0,60318.0,0.93339138]
[1727975222049,0.0002,60339.0,60338.0,0.265733]
[1727975222274,0.0158794,60342.0,60341.0,0.288724]
[1727975222557,1e-08,60342.0,60341.0,0.73785182]
[1727975222780,1e-08,60342.0,60341.0,0.73985182]
[1727975222998,0.000817,60354.0,60353.0,0.47463211]
[1727975223242,0.000817,60354.0,60353.0,0.66415481]
[1727975223451,0.000817,60354.0,60353.0,0.68882281]
[1727975223667,0.000817,60354.0,60353.0,0.71182281]
[1727975223886,0.000817,60354.0,60353.0,0.73649081]
[1727975224141,0.000817,60354.0,60353.0,0.81657202]
[1727975224396,0.000817,60354.0,60353.0,0.75621898]
[1727975224650,0.000817,60354.0,60353.0,0.74521898]
[1727975224874,0.000816,60362.0,60361.0,0.188669]
[1727975225105,0.000816,60362.0,60361.0,1.11693692]
[1727975225341,0.000816,60362.0,60361.0,1.12193692]
[1727975225561,0.000816,60371.0,60366.0,0.57659711]
[1727975225777,0.000816,60371.0,60366.0,0.78219703]
[1727975225998,0.000816,60371.0,60366.0,0.73778382]
[1727975226514,0.000816,60371.0,60366.0,0.78419703]
[1727975226955,0.000816,60371.0,60370.0,0.165645]
[1727975227182,0.000816,60371.0,60370.0,0.45636912]
[1727975227443,0.000816,60371.0,60370.0,0.45383171]
[1727975227878,0.000816,60371.0,60370.0,0.45183171]
[1727975228802,0.000816,60371.0,60370.0,0.60132929]
[1727975229027,0.2491922,60389.0,60371.0,0.1]
[1727975229253,0.2491922,60389.0,60379.0,0.16318671]
[1727975229469,0.331176,60391.0,60381.0,0.165614]
[1727975229690,0.331158,60394.0,60382.0,0.16318671]
[1727975229918,0.331181,60390.0,60382.0,0.16318671]
[1727975230158,0.331205,60386.0,60382.0,0.16318671]
[1727975230409,0.331196,60388.0,60382.0,0.16318671]
[1727975230623,0.165609,60383.0,60382.0,0.16318671]
[1727975231073,0.331177,60391.0,60382.0,0.16318671]
[1727975231074,0.331177,60391.0,60382.0,0.16718671]
[1727975231342,0.165607,60384.0,60382.0,0.16718671]
[1727975231566,0.165609,60383.0,60382.0,0.16718671]
[1727975232260,0.165609,60383.0,60382.0,0.16318671]
[1727975232489,0.165609,60383.0,60382.0,0.16518671]
[1727975232743,0.165605,60385.0,60382.0,0.16518671]
[1727975232969,0.33117,60392.0,60384.0,0.165606]
[1727975233202,0.33117,60392.0,60385.0,0.32878871]
[1727975233203,0.165586,60392.0,60385.0,0.32878871]
[1727975233418,0.331143,60397.0,60385.0,0.49439071]
[1727975233639,0.165585,60392.0,60386.0,0.1656]
[1727975233859,0.331165,60393.0,60387.0,0.16318671]
[1727975234158,0.165595,60389.0,60387.0,0.16318671]
[1727975234392,0.165595,60388.0,60387.0,0.16318671]
[1727975234649,0.331166,60393.0,60378.0,0.2491922]
[1727975234879,0.331168,60393.0,60379.0,0.16318671]
[1727975235102,0.165639,60372.0,60371.0,0.29822414]
[1727975235329,0.0992,60382.0,60371.0,0.41237891]
[1727975235330,0.331242,60379.0,60371.0,0.41237891]
[1727975235559,0.331262,60376.0,60371.0,0.2491922]
[1727975235786,0.165623,60378.0,60372.0,0.165637]
[1727975236005,0.165621,60379.0,60378.0,0.001]
[1727975236689,0.244139,60372.0,60371.0,0.002]
[1727975236942,0.165664,60363.0,60362.0,0.2491922]
[1727975237581,0.165664,60363.0,60350.0,4e-05]
[1727975237582,0.0914,60364.0,60350.0,4e-05]
[1727975237804,0.33135,60360.0,60356.0,0.2491922]
[1727975238063,0.0805,60363.0,60351.0,0.16318671]
[1727975238064,0.331356,60358.0,60351.0,0.16318671]
[1727975238325,0.28594111,60361.0,60350.0,4e-05]
[1727975238540,0.165697,60351.0,60350.0,4e-05]
[1727975238762,0.245597,60351.0,60350.0,4e-05]
[1727975239667,0.245597,60351.0,60350.0,0.00104]
[1727975240339,0.248597,60351.0,60350.0,4e-05]
[1727975240585,0.62473811,60351.0,60350.0,4e-05]
[1727975241053,0.165722,60342.0,60340.0,0.2491922]
[1727975241965,0.165722,60342.0,60331.0,0.331504]
[1727975242215,0.165722,60342.0,60328.0,0.331519]
[1727975242448,0.174722,60342.0,60341.0,0.002634]
[1727975242682,0.174722,60342.0,60341.0,0.001634]
[1727975242683,0.165722,60342.0,60341.0,0.001634]
[1727975242909,0.165722,60342.0,60341.0,0.002634]
[1727975243175,0.175722,60342.0,60341.0,0.003634]
[1727975243451,0.165722,60342.0,60341.0,0.001634]
[1727975243721,0.173722,60342.0,60341.0,0.003634]
[1727975244911,0.165722,60342.0,60341.0,0.002634]
[1727975245143,0.175722,60342.0,60341.0,0.003634]
[1727975245380,0.175722,60342.0,60341.0,0.001634]
[1727975245658,0.183722,60342.0,60341.0,0.002634]
[1727975245873,0.165722,60342.0,60341.0,0.002634]
[1727975246334,0.165722,60342.0,60341.0,0.001634]
[1727975246788,0.165722,60342.0,60341.0,0.002634]
[1727975247033,0.173722,60342.0,60341.0,0.002634]
[1727975247306,0.45966311,60342.0,60341.0,0.002634]
[1727975247555,0.45966311,60342.0,60341.0,0.003634]
[1727975248228,0.45166311,60342.0,60341.0,0.002634]
[1727975248495,0.45166311,60342.0,60341.0,0.003634]
[1727975248747,0.45966311,60342.0,60341.0,0.002634]
[1727975249224,0.181722,60342.0,60341.0,0.003634]
[1727975249467,0.181722,60342.0,60341.0,0.001634]
[1727975249468,0.165722,60342.0,60341.0,0.001634]
[1727975249687,0.165722,60342.0,60341.0,0.002634]
[1727975250162,0.165722,60342.0,60341.0,0.001634]
[1727975250419,0.165722,60342.0,60341.0,0.002634]
[1727975251635,0.165708,60347.0,60341.0,0.16482071]
[1727975251889,0.331385,60353.0,60347.0,0.165707]
[1727975252102,0.2491922,60356.0,60346.0,0.165708]
[1727975252103,0.33139,60352.0,60346.0,0.165708]
[1727975252348,0.165698,60351.0,60346.0,0.165708]
[1727975252591,0.331372,60355.0,60347.0,0.165707]
[1727975252592,0.331374,60355.0,60347.0,0.165707]
[1727975252834,0.165702,60350.0,60346.0,0.16571]
[1727975253092,0.412956,60358.0,60348.0,0.16318671]
[1727975253093,0.0816,60358.0,60348.0,0.16318671]
[1727975253342,0.16568,60357.0,60352.0,0.331388]
[1727975253603,0.165686,60356.0,60352.0,0.32887971]
[1727975253890,0.0912,60362.0,60353.0,0.16318671]
[1727975254147,0.33136,60358.0,60353.0,0.16318671]
[1727975254375,0.0996,60371.0,60355.0,0.2491922]
[1727975254616,0.0996,60371.0,60346.0,0.007]
[1727975254617,0.331298,60369.0,60357.0,0.2491922]
[1727975254847,0.33128,60372.0,60363.0,0.331326]
[1727975255083,0.33128,60372.0,60366.0,0.165654]
[1727975255084,0.165646,60370.0,60366.0,0.165654]
[1727975255310,0.0799,60374.0,60367.0,0.16318671]
[1727975255584,0.2491922,60373.0,60367.0,0.16318671]
[1727975255830,0.165632,60375.0,60368.0,0.16318671]
[1727975256072,0.1823,60382.0,60368.0,0.16318671]
[1727975256303,0.1823,60382.0,60374.0,0.165632]
[1727975256555,0.165626,60377.0,60374.0,0.16318671]
[1727975256797,0.331234,60381.0,60374.0,0.49445371]
[1727975257021,0.0827,60382.0,60374.0,0.16318671]
[1727975257280,0.000817,60386.0,60374.0,0.16318671]
[1727975257611,0.008,60382.0,60378.0,0.331243]
[1727975257834,0.008,60382.0,60379.0,0.32880571]
[1727975258080,0.008,60382.0,60381.0,0.165615]
[1727975258607,0.008,60382.0,60381.0,0.32880171]
[1727975258803,0.000817,60386.0,60385.0,0.165604]
[1727975259038,0.000817,60386.0,60385.0,0.32879071]
[1727975260191,0.000817,60386.0,60385.0,0.33879071]
[1727975260433,0.000817,60386.0,60385.0,0.33679071]
[1727975260682,0.000817,60386.0,60385.0,0.58598291]
[1727975260892,0.000817,60386.0,60385.0,0.35979071]
[1727975261624,0.000817,60386.0,60385.0,0.70898291]
[1727975261844,0.0002,60399.0,60388.0,0.188595]
[1727975262091,0.0002,60399.0,60388.0,0.73772282]
[1727975262983,0.0002,60399.0,60388.0,0.75172282]
[1727975263213,0.0002,60399.0,60388.0,0.76572282]
[1727975263446,0.0002,60399.0,60388.0,0.75172282]
[1727975263716,0.0002,60399.0,60388.0,0.34278171]